fUST/lending_fUST_20250713
["ID","MTS","AMOUNT","RATE_DAILY","PERIOD"]
[371554483,1752346260165,-460.0,0.0002,2]
[371554484,1752346260175,-1678.0,0.00020027,2]
[371554485,1752346260184,-1678.0,0.00020055,2]
[371554486,1752346260194,-1681.0,0.00020082,2]
[371554487,1752346260204,-1387.23066608,0.00020107,2]
[371554488,1752346260216,-915.83,0.0002021,2]
[371554489,1752346260226,-864.3,0.0002021,2]
[371554490,1752346260236,-460.0,0.0002021,2]
[371554491,1752346260245,-1436.56,0.0002021,2]
[371554492,1752346260257,-460.0,0.0002021,2]
[371554493,1752346260266,-631.29,0.0002021,2]
[371554494,1752346260276,-874.74,0.0002021,2]
[371554495,1752346260286,-2721.35,0.0002021,2]
[371554496,1752346260295,-857.84,0.0002021,2]
[371554497,1752346260305,-460.0,0.00020273,2]
[371554498,1752346260315,-460.0,0.00020273,2]
[371554499,1752346260325,-460.0,0.00020273,2]
[371554500,1752346260335,-476.83,0.00020273,2]
[371554501,1752346260344,-460.0,0.00020273,2]
[371554502,1752346260356,-480.52,0.00020273,2]
[371554503,1752346260366,-553.25,0.00020273,2]
[371554504,1752346260376,-505.0,0.00020273,2]
[371554505,1752346260386,-460.0,0.00020273,2]
[371554506,1752346260396,-460.0,0.00020273,2]
[371554507,1752346260406,-460.0,0.00020273,2]
[371554508,1752346260416,-1040.11,0.00020273,2]
[371554509,1752346260425,-460.0,0.00020273,2]
[371554510,1752346260435,-1869.82,0.00020273,2]
[371554511,1752346260444,-460.0,0.00020273,2]
[371554512,1752346260453,-460.0,0.00020273,2]
[371554513,1752346260463,-1640.32,0.00020273,2]
[371554514,1752346260473,-460.0,0.00020273,2]
[371554515,1752346260483,-1054.29,0.00020273,2]
[371554516,1752346260492,-460.0,0.00020273,2]
[371554517,1752346260502,-654.76,0.00020273,2]
[371554518,1752346260511,-460.0,0.00020273,2]
[371554519,1752346260520,-525.6898513,0.00020273,2]
[371554520,1752346260529,-460.0,0.00020273,2]
[371554521,1752346260538,-2105.93,0.00020273,2]
[371554522,1752346260548,-460.0,0.00020273,2]
[371554523,1752346260557,-574.78,0.00020273,2]
[371554524,1752346260567,-1182.37,0.00020273,2]
[371554525,1752346260577,-460.0,0.00020273,2]
[371554526,1752346260587,-460.0,0.00020273,2]
[371554527,1752346260597,-506.15,0.00020273,2]
[371554528,1752346260610,-460.0,0.00020273,2]
[371554529,1752346260620,-1500.0,0.00020282,2]
[371554530,1752346260630,-1500.0,0.00020282,2]
[371554531,1752346260639,-1500.0,0.00020282,2]
[371554532,1752346260649,-1387.23066608,0.00020383,3]
[371554533,1752346260658,-29944.87,0.000204,2]
[371554534,1752346260668,-541.72,0.000204,2]
[371554535,1752346260677,-3745.95,0.000204,2]
[371554536,1752346260687,-915.83,0.00020484,2]
[371554537,1752346260696,-864.3,0.00020484,2]
[371554538,1752346260706,-460.0,0.00020484,2]
[371554539,1752346260715,-1436.56,0.00020484,2]
[371554540,1752346260726,-460.0,0.00020484,2]
[371554541,1752346260736,-631.29,0.00020484,2]
[371554542,1752346260745,-874.74,0.00020484,2]
[371554543,1752346260755,-2721.35,0.00020484,2]
[371554544,1752346260765,-857.84,0.00020484,2]
[371554545,1752346260775,-460.0,0.00020547,2]
[371554546,1752346260785,-460.0,0.00020547,2]
[371554547,1752346260795,-476.83,0.00020547,2]
[371554548,1752346260805,-460.0,0.00020547,2]
[371554549,1752346260815,-480.52,0.00020547,2]
[371554550,1752346260824,-553.25,0.00020547,2]
[371554551,1752346260834,-505.0,0.00020547,2]
[371554552,1752346260844,-460.0,0.00020547,2]
[371554553,1752346260855,-460.0,0.00020547,2]
[371554554,1752346260865,-460.0,0.00020547,2]
[371554555,1752346260874,-1040.11,0.00020547,2]
[371554556,1752346260884,-460.0,0.00020547,2]
[371554557,1752346260894,-1869.82,0.00020547,2]
[371554558,1752346260903,-460.0,0.00020547,2]
[371554559,1752346260914,-460.0,0.00020547,2]
[371554560,1752346260923,-1640.32,0.00020547,2]
[371554561,1752346260932,-460.0,0.00020547,2]
[371554562,1752346260942,-1054.29,0.00020547,2]
[371554563,1752346260951,-460.0,0.00020547,2]
[371554564,1752346260961,-654.76,0.00020547,2]
[371554565,1752346260972,-460.0,0.00020547,2]
[371554566,1752346260982,-423.92,0.00020547,2]
[371554567,1752346260992,-2105.93,0.00020547,2]
[371554568,1752346261002,-460.0,0.00020547,2]
[371554569,1752346261012,-574.78,0.00020547,2]
[371554570,1752346261024,-1182.37,0.00020547,2]
[371554571,1752346261034,-460.0,0.00020547,2]
[371554572,1752346261044,-460.0,0.00020547,2]
[371554573,1752346261055,-506.15,0.00020547,2]
[371554574,1752346261064,-460.0,0.00020547,2]
[371554575,1752346261074,-593.403,0.00020606,2]
[371554576,1752346261083,-156.1156594,0.00020658,2]
[371554577,1752346261093,-1387.23066608,0.00020659,3]
[371554578,1752346261103,-5000.0,0.00020659,2]
[371554579,1752346261112,-306.0,0.00020685,2]
[371554580,1752346261122,-915.83,0.00020758,2]
[371554581,1752346261131,-347.01215147,0.00020758,2]
[371554582,1752346261291,-517.28784853,0.00020758,2]
[371554583,1752346261301,-460.0,0.00020758,2]
[371554584,1752346261311,-1436.56,0.00020758,2]
[371554585,1752346261320,-460.0,0.00020758,2]
[371554586,1752346261330,-631.29,0.00020758,2]
[371554587,1752346261340,-874.74,0.00020758,2]
[371554588,1752346261350,-953.49290288,0.00020758,2]
[371554589,1752346261362,-1767.85709712,0.00020758,2]
[371554590,1752346261372,-857.84,0.00020758,2]
[371554591,1752346261381,-460.0,0.00020821,2]
[371554592,1752346261391,-460.0,0.00020821,2]
[371554593,1752346261400,-476.83,0.00020821,2]
[371554594,1752346261409,-460.0,0.00020821,2]
[371554595,1752346261418,-480.52,0.00020821,2]
[371554596,1752346261428,-553.25,0.00020821,2]
[371554597,1752346261437,-505.0,0.00020821,2]
[371554598,1752346261447,-460.0,0.00020821,2]
[371554599,1752346261458,-460.0,0.00020821,2]
[371554600,1752346261474,-303.72514697,0.00020821,2]
[371554601,1752346261484,-1040.11,0.00020821,2]
[371554602,1752346261494,-460.0,0.00020821,2]
[371554603,1752346261504,-1869.82,0.00020821,2]
[371554604,1752346261514,-322.45465161,0.00020821,2]
[371554605,1752346261527,-137.54534839,0.00020821,2]
[371554606,1752346261538,-460.0,0.00020821,2]
[371554607,1752346261548,-1640.32,0.00020821,2]
[371554608,1752346261557,-505.5,0.00020821,2]
[371554609,1752346261567,-1054.29,0.00020821,2]
[371554610,1752346261578,-460.0,0.00020821,2]
[371554611,1752346261588,-654.76,0.00020821,2]
[371554612,1752346261598,-460.0,0.00020821,2]
[371554613,1752346261609,-2105.93,0.00020821,2]
[371554614,1752346261619,-460.0,0.00020821,2]
[371554615,1752346261629,-574.78,0.00020821,2]
[371554616,1752346261639,-1182.37,0.00020821,2]
[371554617,1752346261648,-315.77488138,0.00020821,2]
[371554618,1752346261659,-460.0,0.00020821,2]
[371554619,1752346261669,-506.15,0.00020821,2]
[371554620,1752346261679,-460.0,0.00020821,2]
[371554621,1752346261690,-1811.61810555,0.0002083,2]
[371554622,1752346261702,-188.38189445,0.0002083,2]
[371554623,1752346261711,-2000.0,0.0002083,2]
[371554624,1752346261721,-247.0,0.00020846,2]
[371554625,1752346261730,-258.21,0.00020854,2]
[371554626,1752346261740,-247.0,0.00020859,2]
[371554627,1752346261749,-1387.23066608,0.00020934,4]
[371554628,1752346261759,-247.0,0.00021014,2]
[371554629,1752346261768,-168.0,0.00021015,2]
[371554630,1752346261777,-915.83,0.00021032,2]
[371554631,1752346261787,-864.3,0.00021032,2]
[371554632,1752346261796,-460.0,0.00021032,2]
[371554633,1752346261807,-1436.56,0.00021032,2]
[371554634,1752346261816,-460.0,0.00021032,2]
[371554635,1752346261826,-631.29,0.00021032,2]
[371554636,1752346261835,-766.31279293,0.00021032,2]
[371554637,1752346262129,-108.42720707,0.00021032,2]
[371554638,1752346262139,-2721.35,0.00021032,2]
[371554639,1752346262148,-857.84,0.00021032,2]
[371554640,1752346262157,-460.0,0.00021095,2]
[371554641,1752346262166,-460.0,0.00021095,2]
[371554642,1752346262175,-476.83,0.00021095,2]
[371554643,1752346262184,-460.0,0.00021095,2]
[371554644,1752346262193,-480.52,0.00021095,2]
[371554645,1752346262202,-553.25,0.00021095,2]
[371554646,1752346262214,-505.0,0.00021095,2]
[371554647,1752346262224,-460.0,0.00021095,2]
[371554648,1752346262233,-460.0,0.00021095,2]
[371554649,1752346262242,-1040.11,0.00021095,2]
[371554650,1752346262254,-460.0,0.00021095,2]
[371554651,1752346262263,-1869.82,0.00021095,2]
[371554652,1752346262272,-508.9,0.00021095,2]
[371554653,1752346262282,-460.0,0.00021095,2]
[371554654,1752346262291,-1640.32,0.00021095,2]
[371554655,1752346262300,-1054.29,0.00021095,2]
[371554656,1752346262310,-460.0,0.00021095,2]
[371554657,1752346262320,-654.76,0.00021095,2]
[371554658,1752346262329,-460.0,0.00021095,2]
[371554659,1752346262338,-2105.93,0.00021095,2]
[371554660,1752346262347,-460.0,0.00021095,2]
[371554661,1752346262357,-574.78,0.00021095,2]
[371554662,1752346262365,-1182.37,0.00021095,2]
[371554663,1752346262375,-460.0,0.00021095,2]
[371554664,1752346262384,-506.15,0.00021095,2]
[371554665,1752346262393,-460.0,0.00021095,2]
[371554666,1752346262403,-247.0,0.00021095,2]
[371554667,1752346262413,-247.0,0.00021097,2]
[371554668,1752346262422,-215.0738,0.00021136,2]
[371554669,1752346262432,-247.0,0.0002121,2]
[371554670,1752346262442,-1387.23066608,0.0002121,4]
[371554671,1752346262452,-194.604778,0.00021217,2]
[371554672,1752346262462,-864.3,0.00021306,2]
[371554673,1752346262472,-460.0,0.00021306,2]
[371554674,1752346262482,-1436.56,0.00021306,2]
[371554675,1752346262494,-460.0,0.00021306,2]
[371554676,1752346262503,-631.29,0.00021306,2]
[371554677,1752346262513,-874.74,0.00021306,2]
[371554678,1752346262523,-2721.35,0.00021306,2]
[371554679,1752346262533,-857.84,0.00021306,2]
[371554680,1752346262543,-460.0,0.00021369,2]
[371554681,1752346262553,-460.0,0.00021369,2]
[371554682,1752346262562,-476.83,0.00021369,2]
[371554683,1752346262572,-460.0,0.00021369,2]
[371554684,1752346262582,-480.52,0.00021369,2]
[371554685,1752346262591,-553.25,0.00021369,2]
[371554686,1752346262601,-505.0,0.00021369,2]
[371554687,1752346262612,-460.0,0.00021369,2]
[371554688,1752346262622,-460.0,0.00021369,2]
[371554689,1752346262631,-1040.11,0.00021369,2]
[371554690,1752346262642,-460.0,0.00021369,2]
[371554691,1752346262652,-1869.82,0.00021369,2]
[371554692,1752346262663,-460.0,0.00021369,2]
[371554693,1752346262673,-1640.32,0.00021369,2]
[371554694,1752346262683,-1054.29,0.00021369,2]
[371554695,1752346262692,-460.0,0.00021369,2]
[371554696,1752346262702,-654.76,0.00021369,2]
[371554697,1752346262712,-460.0,0.00021369,2]
[371554698,1752346262722,-2105.93,0.00021369,2]
[371554699,1752346262732,-460.0,0.00021369,2]
[371554700,1752346262742,-574.78,0.00021369,2]
[371554701,1752346262752,-1182.37,0.00021369,2]
[371554702,1752346262761,-460.0,0.00021369,2]
[371554703,1752346262771,-506.15,0.00021369,2]
[371554704,1752346262780,-460.0,0.00021369,2]
[371554705,1752346262790,-247.0,0.00021373,2]
[371554706,1752346262799,-2500.0,0.00021377,2]
[371554707,1752346262808,-247.0,0.00021408,2]
[371554708,1752346262818,-1827.60029058,0.0002148,2]
[371554709,1752346262828,-1387.23066608,0.00021486,5]
[371554710,1752346262838,-168.0,0.00021512,2]
[371554711,1752346262847,-221.0,0.00021547,2]
[371554712,1752346262858,-864.3,0.0002158,2]
[371554713,1752346262868,-291.56406408,0.0002158,2]
[371554714,1752346262878,-1436.56,0.0002158,2]
[371554715,1752346262888,-460.0,0.0002158,2]
[371554716,1752346262897,-631.29,0.0002158,2]
[371554717,1752346262907,-874.74,0.0002158,2]
[371554718,1752346262923,-2721.35,0.0002158,2]
[371554719,1752346262941,-857.84,0.0002158,2]
[371554720,1752346262955,-29944.87,0.000216,2]
[371554721,1752346262970,-541.72,0.000216,2]
[371554722,1752346262986,-3745.95,0.000216,2]
[371554723,1752346263003,-247.0,0.00021624,2]
[371554724,1752346263021,-600.0,0.00021638,2]
[371554725,1752346263036,-421.73,0.00021643,2]
[371554726,1752346263051,-460.0,0.00021643,2]
[371554727,1752346263066,-476.83,0.00021643,2]
[371554728,1752346263082,-460.0,0.00021643,2]
[371554729,1752346263097,-480.52,0.00021643,2]
[371554730,1752346263111,-553.25,0.00021643,2]
[371554731,1752346263126,-505.0,0.00021643,2]
[371554732,1752346263143,-460.0,0.00021643,2]
[371554733,1752346263160,-460.0,0.00021643,2]
[371554734,1752346263178,-1040.11,0.00021643,2]
[371554735,1752346263193,-460.0,0.00021643,2]
[371554736,1752346263206,-1869.82,0.00021643,2]
[371554737,1752346263219,-377.42455452,0.00021643,2]
[371554738,1752346263236,-1640.32,0.00021643,2]
[371554739,1752346263250,-1054.29,0.00021643,2]
[371554740,1752346263263,-460.0,0.00021643,2]
[371554741,1752346263277,-654.76,0.00021643,2]
[371554742,1752346263292,-460.0,0.00021643,2]
[371554743,1752346263304,-2105.93,0.00021643,2]
[371554744,1752346263318,-460.0,0.00021643,2]
[371554745,1752346263333,-574.78,0.00021643,2]
[371554746,1752346263346,-1182.37,0.00021643,2]
[371554747,1752346263361,-460.0,0.00021643,2]
[371554748,1752346263374,-506.15,0.00021643,2]
[371554749,1752346263388,-460.0,0.00021643,2]
[371554750,1752346263402,-539.601459,0.00021756,4]
[371554751,1752346263415,-247.0,0.00021757,2]
[371554752,1752346263428,-1387.23066608,0.00021762,5]
[371554753,1752346263442,-247.0,0.00021828,2]
[371554754,1752346263454,-516.42,0.00021847,2]
[371554755,1752346263468,-247.0,0.00021849,2]
[371554756,1752346263481,-864.3,0.00021854,2]
[371554757,1752346263494,-1436.56,0.00021854,2]
[371554758,1752346263508,-460.0,0.00021854,2]
[371554759,1752346263521,-631.29,0.00021854,2]
[371554760,1752346263535,-874.74,0.00021854,2]
[371554761,1752346263549,-2721.35,0.00021854,2]
[371554762,1752346263560,-857.84,0.00021854,2]
[371554763,1752346263570,-601.54852355,0.00021864,2]
[371554764,1752346263581,-194.604778,0.00021864,3]
[371554765,1752346263591,-1827.60029057,0.00021874,2]
[371554766,1752346263602,-460.0,0.00021917,2]
[371554767,1752346263612,-476.83,0.00021917,2]
[371554768,1752346263622,-508.38668228,0.00021917,2]
[371554769,1752346263632,-480.52,0.00021917,2]
[371554770,1752346263643,-553.25,0.00021917,2]
[371554771,1752346263652,-505.0,0.00021917,2]
[371554772,1752346263662,-460.0,0.00021917,2]
[371554773,1752346263672,-380.74167979,0.00021917,2]
[371554774,1752346263682,-1040.11,0.00021917,2]
[371554775,1752346263692,-460.0,0.00021917,2]
[371554776,1752346263702,-1869.82,0.00021917,2]
[371554777,1752346263712,-1640.32,0.00021917,2]
[371554778,1752346263722,-1054.29,0.00021917,2]
[371554779,1752346263732,-209.31808428,0.00021917,2]
[371554780,1752346263742,-654.76,0.00021917,2]
[371554781,1752346263752,-460.0,0.00021917,2]
[371554782,1752346263762,-2105.93,0.00021917,2]
[371554783,1752346263771,-460.0,0.00021917,2]
[371554784,1752346263782,-574.78,0.00021917,2]
[371554785,1752346263792,-1182.37,0.00021917,2]
[371554786,1752346263802,-460.0,0.00021917,2]
[371554787,1752346263812,-126.11974757,0.00021917,2]
[371554788,1752346264290,-543.49041911,0.00018821,2]
[371554789,1752346264300,-380.03025243,0.00021917,2]
[371554790,1752346264312,-460.0,0.00021917,2]
[371554791,1752346264321,-221.0,0.00021951,2]
[371554792,1752346264332,-253.09215503,0.0002199,2]
[371554793,1752346264341,-247.0,0.0002201,2]
[371554794,1752346264352,-247.0,0.00022023,2]
[371554795,1752346264363,-247.0,0.00022025,2]
[371554796,1752346264372,-1387.23066608,0.00022038,6]
[371554797,1752346264383,-647.0,0.00022072,2]
[371554798,1752346264392,-1799.76383893,0.00022072,2]
[371554799,1752346264404,-354.23616107,0.00022072,2]
[371554800,1752346264415,-645.76383893,0.00022103,2]
[371554801,1752346264426,-4354.23616107,0.00022103,2]
[371554802,1752346264437,-1436.56,0.00022128,2]
[371554803,1752346264447,-460.0,0.00022128,2]
[371554804,1752346264456,-631.29,0.00022128,2]
[371554805,1752346264466,-874.74,0.00022128,2]
[371554806,1752346264476,-2721.35,0.00022128,2]
[371554807,1752346264485,-242.28887461,0.00022128,2]
[371554808,1752346264614,-460.0,0.00016438,2]
[371554809,1752346264624,-460.0,0.00016438,2]
[371554810,1752346264634,-460.0,0.00016438,2]
[371554811,1752346264644,-460.0,0.00016712,2]
[371554812,1752346264654,-460.0,0.00016712,2]
[371554813,1752346264665,-500.0,0.00018837,2]
[371554814,1752346264675,-500.0,0.00018837,2]
[371554815,1752346264685,-615.55112539,0.00022128,2]
[371554816,1752346264695,-194.604778,0.00022141,6]
[371554817,1752346264704,-426.08,0.00022191,2]
[371554818,1752346264714,-476.83,0.00022191,2]
[371554819,1752346264724,-480.52,0.00022191,2]
[371554820,1752346264733,-553.25,0.00022191,2]
[371554821,1752346264743,-505.0,0.00022191,2]
[371554822,1752346264752,-460.0,0.00022191,2]
[371554823,1752346264762,-1040.11,0.00022191,2]
[371554824,1752346264772,-460.0,0.00022191,2]
[371554825,1752346264781,-1869.82,0.00022191,2]
[371554826,1752346264791,-1640.32,0.00022191,2]
[371554827,1752346264800,-1054.29,0.00022191,2]
[371554828,1752346264810,-460.0,0.00022191,2]
[371554829,1752346264819,-2105.93,0.00022191,2]
[371554830,1752346264829,-460.0,0.00022191,2]
[371554831,1752346264839,-574.78,0.00022191,2]
[371554832,1752346264848,-1182.37,0.00022191,2]
[371554833,1752346264860,-533.08713233,0.00022191,2]
[371554834,1752346264870,-506.15,0.00022191,2]
[371554835,1752346264879,-460.0,0.00022191,2]
[371554836,1752346264889,-87410.28741869,0.000222,2]
[371554841,1752346457116,167.63284173,0.00016238,2]
[371554842,1752346457447,167.63284172,0.00016271,2]
[371554843,1752346457855,167.63284172,0.00016305,2]
[371554844,1752346484721,211.32980603,0.00016238,2]
[371554845,1752346494111,254.13261362,0.00015945,2]
[371554846,1752346705376,212.87,0.00022834,30]
[371554848,1752346736124,390.7497561,0.00015639,2]
[371554849,1752346737617,200.201488,0.00013699,2]
[371554850,1752346784678,210.55,0.00022827,30]
[371554851,1752346796655,215.3816673,0.00015945,2]
[371554852,1752347001226,126991.1623021,0.000176,6]
[371554853,1752347005211,24900.0,0.0001579,2]
[371554854,1752347046196,171.2848267,0.00015643,2]
[371554877,1752347346343,232.459209,0.00015631,2]
[371554891,1752347437366,-339.68151197,0.00016338,2]
[371554892,1752347437379,-300.0,0.00016436,2]
[371554893,1752347437389,-343.30173199,0.00016436,2]
[371554895,1752347437401,-856.69826801,0.00016436,2]
[371554896,1752347437411,-300.0,0.00016436,2]
[371554897,1752347437420,-300.0,0.00016436,2]
[371554898,1752347437429,-160.0,0.00016437,2]
[371554900,1752347437439,-1200.0,0.00016437,2]
[371554902,1752347437448,-460.0,0.00016438,2]
[371554904,1752347437457,-460.0,0.00016438,2]
[371554906,1752347437466,-460.0,0.00016438,2]
[371554908,1752347437476,-460.0,0.00016438,2]
[371554910,1752347437485,-460.0,0.00016438,2]
[371554912,1752347437495,-460.0,0.00016438,2]
[371554914,1752347437504,-239.59739498,0.00016438,2]
[371554916,1752347437514,-460.0,0.00016438,2]
[371554919,1752347437523,-460.0,0.00016438,2]
[371554922,1752347437532,-540.0,0.00016438,2]
[371554926,1752347437542,-460.0,0.00016438,2]
[371554929,1752347437551,-460.0,0.00016438,2]
[371554930,1752347437561,-460.0,0.00016438,2]
[371554932,1752347437570,-460.0,0.00016438,2]
[371554933,1752347437580,-460.0,0.00016438,2]
[371554934,1752347437589,-460.0,0.00016438,2]
[371554935,1752347437598,-460.0,0.00016438,2]
[371554936,1752347437607,-460.0,0.00016438,2]
[371554937,1752347437616,-460.0,0.00016438,2]
[371554938,1752347437626,-460.0,0.00016438,2]
[371554939,1752347437635,-201.28796667,0.00016438,2]
[371554941,1752347437644,-460.0,0.00016438,2]
[371554943,1752347437654,-460.0,0.00016438,2]
[371554944,1752347437664,-460.0,0.00016438,2]
[371554945,1752347437674,-439.51006064,0.00016438,2]
[371554947,1752347437684,-224.22786321,0.00016438,2]
[371554949,1752347437694,-460.0,0.00016438,2]
[371554950,1752347437710,-460.0,0.00016438,2]
[371554952,1752347437720,-1000.0,0.00016438,2]
[371554954,1752347437730,-460.0,0.00016438,2]
[371554956,1752347437740,-460.0,0.00016438,2]
[371554958,1752347437751,-460.0,0.00016438,2]
[371554960,1752347437761,-460.0,0.00016438,2]
[371554962,1752347437771,-460.0,0.00016438,2]
[371554964,1752347437782,-460.0,0.00016438,2]
[371554966,1752347437792,-460.0,0.00016438,2]
[371554968,1752347437802,-460.0,0.00016438,2]
[371554970,1752347437812,-460.0,0.00016438,2]
[371554972,1752347437822,-460.0,0.00016438,2]
[371554974,1752347437832,-460.0,0.00016438,2]
[371554976,1752347437842,-487.32142017,0.00016438,2]
[371554978,1752347437851,-460.0,0.00016438,2]
[371554980,1752347437862,-460.0,0.00016438,2]
[371554982,1752347437871,-460.0,0.00016438,2]
[371554984,1752347437880,-460.0,0.00016438,2]
[371554986,1752347437890,-462.3907514,0.00016438,2]
[371554988,1752347437899,-460.0,0.00016438,2]
[371554990,1752347437908,-460.0,0.00016438,2]
[371554992,1752347437917,-460.0,0.00016438,2]
[371554994,1752347437928,-460.0,0.00016438,2]
[371554996,1752347437937,-460.0,0.00016438,2]
[371554998,1752347437947,-460.0,0.00016438,2]
[371555000,1752347437957,-544.66711692,0.00016438,2]
[371555002,1752347437967,-460.0,0.00016438,2]
[371555004,1752347437976,-460.0,0.00016438,2]
[371555006,1752347437986,-460.0,0.00016438,2]
[371555008,1752347437996,-460.0,0.00016438,2]
[371555010,1752347438006,-460.0,0.00016438,2]
[371555012,1752347438015,-460.0,0.00016438,2]
[371555014,1752347438025,-460.0,0.00016438,2]
[371555016,1752347438035,-460.0,0.00016438,2]
[371555018,1752347438045,-389.89938791,0.00016438,2]
[371555020,1752347438054,-460.0,0.00016438,2]
[371555022,1752347438064,-460.0,0.00016438,2]
[371555024,1752347438074,-460.0,0.00016438,2]
[371555026,1752347438084,-460.0,0.00016438,2]
[371555028,1752347438094,-460.0,0.00016438,2]
[371555030,1752347438104,-460.0,0.00016438,2]
[371555032,1752347438114,-460.0,0.00016438,2]
[371555034,1752347438124,-460.0,0.00016438,2]
[371555036,1752347438134,-460.0,0.00016438,2]
[371555038,1752347438143,-460.0,0.00016438,2]
[371555040,1752347438153,-460.0,0.00016438,2]
[371555042,1752347438163,-460.0,0.00016438,2]
[371555044,1752347438173,-460.0,0.00016438,2]
[371555047,1752347438187,-460.0,0.00016438,2]
[371555049,1752347438197,-460.0,0.00016438,2]
[371555051,1752347438207,-460.0,0.00016438,2]
[371555053,1752347438218,-460.0,0.00016438,2]
[371555055,1752347438228,-460.0,0.00016438,2]
[371555057,1752347438238,-460.0,0.00016438,2]
[371555059,1752347438247,-460.0,0.00016438,2]
[371555061,1752347438257,-460.0,0.00016438,2]
[371555063,1752347438268,-460.0,0.00016438,2]
[371555065,1752347438277,-460.0,0.00016438,2]
[371555067,1752347438286,-237.77885004,0.00016438,2]
[371555069,1752347438296,-85.82855597,0.00016438,2]
[371555072,1752347438311,-374.17144403,0.00016438,2]
[371555073,1752347438322,-460.0,0.00016438,2]
[371555075,1752347438331,-460.0,0.00016438,2]
[371555076,1752347438341,-460.0,0.00016438,2]
[371555077,1752347438351,-460.0,0.00016438,2]
[371555078,1752347438360,-460.0,0.00016438,2]
[371555079,1752347438370,-783.43,0.00016438,2]
[371555080,1752347438380,-460.0,0.00016438,2]
[371555081,1752347438389,-460.0,0.00016438,2]
[371555082,1752347438398,-460.0,0.00016438,2]
[371555083,1752347438407,-460.0,0.00016438,2]
[371555084,1752347438417,-607.04,0.00016438,2]
[371555085,1752347438426,-460.0,0.00016438,2]
[371555087,1752347438436,-460.0,0.00016438,2]
[371555089,1752347438446,-460.0,0.00016438,2]
[371555091,1752347438455,-460.0,0.00016438,2]
[371555093,1752347438464,-460.0,0.00016438,2]
[371555095,1752347438474,-460.0,0.00016438,2]
[371555097,1752347438483,-460.0,0.00016438,2]
[371555099,1752347438493,-460.0,0.00016438,2]
[371555101,1752347438503,-460.0,0.00016438,2]
[371555103,1752347438512,-460.0,0.00016438,2]
[371555105,1752347438522,-460.0,0.00016438,2]
[371555107,1752347438531,-460.0,0.00016438,2]
[371555109,1752347438541,-460.0,0.00016438,2]
[371555112,1752347438551,-460.0,0.00016438,2]
[371555114,1752347438561,-523.54010684,0.00016438,2]
[371555115,1752347438571,-460.0,0.00016438,2]
[371555116,1752347438580,-460.0,0.00016438,2]
[371555117,1752347438592,-460.0,0.00016438,2]
[371555119,1752347438602,-460.0,0.00016438,2]
[371555121,1752347438612,-460.0,0.00016438,2]
[371555122,1752347438621,-460.0,0.00016438,2]
[371555123,1752347438631,-460.0,0.00016438,2]
[371555124,1752347438640,-460.0,0.00016438,2]
[371555125,1752347438649,-460.0,0.00016438,2]
[371555126,1752347438659,-460.0,0.00016438,2]